Workbook

Sheet Hoja1
A1: Calif
A2: 74 | C2: n = | D2: =COUNT(Calif) -> 40
A3: 89 | C3: Min = | D3: =MIN(Calif) -> 60
A4: 82 | C4: Máx = | D4: =MAX(Calif) -> 98
A5: 83 | C5: Rango = | D5: =D4-D3 -> 38
A6: 67 | C6: Nro intervalos = | D6: =INT(1+3.32*LOG(D2)+0.5) -> 6
A7: 81 | C7: Amplitud = | D7: =D5/D6 -> 6.333333333
A8: 68
A9: 85 | C9: Tabla de distribución de frecuencias
A10: 81 | C10: Linf | D10: Lsup | E10: PtoMedio | F10: fi | G10: Fi | H10: hi | I10: Hi
A11: 72 | C11: =MIN(Calif) -> 60 | D11: =C11+$D$7 -> 66.33333333 | E11: =(C11+D11)/2 -> 63.16666667 | F11: =FREQUENCY(Calif,D11:D16) -> 5 | G11: =F11 -> 5 | H11: =F11/$F$17 -> 0.125 | I11: =H11 -> 0.125
A12: 71 | C12: =D11 -> 66.33333333 | D12: =C12+$D$7 -> 72.66666667 | E12: =(C12+D12)/2 -> 69.5 | F12: 9 | G12: =G11+F12 -> 14 | H12: =F12/$F$17 -> 0.225 | I12: =I11+H12 -> 0.35
A13: 74 | C13: =D12 -> 72.66666667 | D13: =C13+$D$7 -> 79 | E13: 75.83333333 | F13: 2 | G13: =G12+F13 -> 16 | H13: 0.05 | I13: =I12+H13 -> 0.4
A14: 60 | C14: 79 | D14: 85.33333333 | E14: 82.16666667 | F14: 16 | G14: 32 | H14: 0.4 | I14: 0.8
A15: 64 | C15: 85.33333333 | D15: 91.66666667 | E15: 88.5 | F15: 5 | G15: 37 | H15: 0.125 | I15: 0.925
A16: 72 | C16: 91.66666667 | D16: =C16+$D$7+0.001 -> 98.001 | E16: 94.83383333 | F16: 3 | G16: 40 | H16: 0.075 | I16: 1
A17: 84 | F17: =SUM(F11:F16) -> 40
A18: 66
A19: 84
A20: 69
A21: 81
A22: 69
A23: 66
A24: 93
A25: 63
A26: 98
A27: 70
A28: 95
A29: 82
A30: 81
A31: 80
A32: 88
A33: 80
A34: 85
A35: 85
A36: 72
A37: 81
A38: 90
A39: 89
A40: 80
A41: 87

Sheet Hoja2

Sheet Hoja3
